[Event "EYCC Girls-U12 2019"]
[Site "Bratislava"]
[Date "2019.08.07"]
[Round "6.13"]
[White "Dubovik, Maria"]
[Black "Mikheeva, Galina"]
[Result "1/2-1/2"]
[ECO "C61"]
[WhiteElo "1504"]
[BlackElo "1952"]
[Annotator "NA"]
[PlyCount "87"]
[EventDate "2019.08.02"]
[EventType "swiss"]
[EventCountry "SVK"]
[SourceTitle "playchess.com"]
[Source "ChessBase"]
[SourceQuality "1"]
[TimeControl "40/5400+30:1800+30"]

1. e4 {[%emt 0:00:00]} e5 {[%emt 0:00:00]} 2. Nf3 {[%emt 0:00:02]} Nc6 {[%emt 0:00:00]} 3. Bb5 {[%emt 0:00:22]} Nd4 {[%emt 0:00:11]} 4. Nxd4 {[%emt 0:00:50]} exd4 {[%emt 0:00:06]} 5. O-O {[%emt 0:00:39]} Bc5 {[%emt 0:00:17]} 6. d3 {[%emt 0:00:55]} c6 {[%emt 0:00:32]} 7. Bc4 {[%emt 0:02:24]} d5 {[%emt 0:00:57]} 8. Bb3 {[%emt 0:03:33]} h5 {[%emt 0:09:55]} 9. exd5 {[%emt 0:07:09]} cxd5 {[%emt 0:00:15]} 10. Re1+ {[%emt 0:01:39]} Ne7 {[%emt 0:03:24]} 11. Qf3 {[%emt 0:05:42]} Kf8 {[%emt 0:04:48]} 12. Bg5 {[%emt 0:03:14]} f6 {[%emt 0:29:50]} 13. Bxf6 {[%emt 0:12:39]} gxf6 {[%emt 0:00:06]} 14. Qxf6+ {[%emt 0:00:08]} Kg8 {[%emt 0:00:20]} 15. Re5 {[%emt 0:02:55]} Bf5 {[%emt 0:00:30]} 16. Bxd5+ {[%emt 0:00:54]} Kh7 {[%emt 0:02:11]} 17. Rxf5 {[%emt 0:25:59]} Nxf5 {[%emt 0:01:44]} 18. Qxf5+ {[%emt 0:00:03]} Kg7 {[%emt 0:01:32]} 19. Nd2 {[%emt 0:01:24]} Bb4 {[%emt 0:09:35]} 20. Ne4 {[%emt 0:01:05]} Qe7 {[%emt 0:06:23]} 21. Ng5 {[%emt 0:04:19]} Rh6 {[%emt 0:07:27]} 22. Ne6+ {[%emt 0:04:16]} Kh8 {[%emt 0:02:03]} 23. Qe5+ {[%emt 0:00:32]} Qf6 {[%emt 0:01:46]} 24. Qxf6+ {[%emt 0:00:07]} Rxf6 {[%emt 0:00:06]} 25. Nxd4 {[%emt 0:00:40]} Rd8 {[%emt 0:03:22]} 26. c4 {[%emt 0:00:49]} Bc5 {[%emt 0:03:19]} 27. Nf3 {[%emt 0:00:11]} a5 {[%emt 0:04:19]} 28. d4 {[%emt 0:00:51]} Ba7 {[%emt 0:00:58]} 29. Ng5 {[%emt 0:03:18]} Rb8 {[%emt 0:04:11]} 30. Ne6 {[%emt 0:01:34]} Re8 {[%emt 0:01:28]} 31. Rd1 {[%emt 0:03:44]} Rexe6 {[%emt 0:01:38]} 32. Bxe6 {[%emt 0:00:02]} Rxe6 {[%emt 0:00:02]} 33. Kf1 {[%emt 0:00:23]} Kg7 {[%emt 0:01:04]} 34. c5 {[%emt 0:00:44]} Kf6 {[%emt 0:01:05]} 35. d5 {[%emt 0:01:07]} Re7 {[%emt 0:01:02]} 36. Rc1 {[%emt 0:00:42]} Rc7 {[%emt 0:00:35]} 37. c6 {[%emt 0:00:40]} bxc6 {[%emt 0:00:12]} 38. dxc6 {[%emt 0:00:19]} Ke5 {[%emt 0:00:47]} 39. Rc4 {[%emt 0:00:47]} Kd6 {[%emt 0:00:49]} 40. Ke2 {[%emt 0:00:00]} Re7+ {[%emt 0:00:00]} 41. Kf1 {[%emt 0:02:36]} Rc7 {[%emt 0:02:43]} 42. Ke2 {[%emt 0:00:19]} Re7+ {[%emt 0:00:28]} 43. Kf1 Rc7 44. Ke2 1/2-1/2

[Event "EYCC Girls-U12 2019"]
[Site "Bratislava"]
[Date "2019.08.07"]
[Round "6.14"]
[White "Gasimova, Samra"]
[Black "Arora, Tashika"]
[Result "1-0"]
[ECO "D91"]
[WhiteElo "1695"]
[BlackElo "1447"]
[Annotator "NA"]
[PlyCount "147"]
[EventDate "2019.08.02"]
[EventType "swiss"]
[EventCountry "SVK"]
[SourceTitle "playchess.com"]
[Source "ChessBase"]
[SourceQuality "1"]
[TimeControl "40/5400+30:1800+30"]

1. d4 {[%emt 0:00:00]} Nf6 {[%emt 0:00:00]} 2. Nf3 {[%emt 0:00:00]} g6 {[%emt 0:00:00]} 3. c4 {[%emt 0:00:00]} Bg7 {[%emt 0:00:00]} 4. Nc3 {[%emt 0:00:00]} d5 {[%emt 0:00:00]} 5. Bg5 {[%emt 0:00:00]} Ne4 {[%emt 0:00:32]} 6. Bh4 {[%emt 0:00:14]} Nxc3 {[%emt 0:00:46]} 7. bxc3 {[%emt 0:00:06]} c5 {[%emt 0:01:11]} 8. cxd5 {[%emt 0:00:48]} Qxd5 {[%emt 0:00:50]} 9. e3 {[%emt 0:00:53]} cxd4 {[%emt 0:01:21]} 10. cxd4 {[%emt 0:00:44]} Nc6 {[%emt 0:01:31]} 11. Be2 {[%emt 0:01:46]} O-O {[%emt 0:01:52]} 12. O-O {[%emt 0:00:27]} Bf5 {[%emt 0:01:08]} 13. Nd2 {[%emt 0:06:17]} e5 {[%emt 0:14:30]} 14. Bf3 {[%emt 0:07:00]} e4 {[%emt 0:03:37]} 15. Be2 {[%emt 0:02:08]} Rac8 {[%emt 0:01:41]} 16. g4 {[%emt 0:09:26]} Be6 {[%emt 0:01:26]} 17. f3 {[%emt 0:15:51]} exf3 {[%emt 0:00:42]} 18. Bxf3 {[%emt 0:00:21]} Qd7 {[%emt 0:01:30]} 19. Ne4 {[%emt 0:08:01]} b6 {[%emt 0:11:14]} 20. Nf6+ {[%emt 0:05:24]} Bxf6 {[%emt 0:00:10]} 21. Bxf6 {[%emt 0:00:05]} Bc4 {[%emt 0:02:24]} 22. Re1 {[%emt 0:02:38]} Qd6 {[%emt 0:07:24]} 23. g5 {[%emt 0:04:33]} h6 {[%emt 0:03:24]} 24. Bg4 {[%emt 0:02:56]} Rce8 {[%emt 0:06:54]} 25. Qf3 {[%emt 0:02:23]} hxg5 {[%emt 0:05:29]} 26. Rf1 {[%emt 0:10:35]} Bxf1 {[%emt 0:03:00]} 27. Rxf1 {[%emt 0:00:06]} Qa3 {[%emt 0:09:14]} 28. Qxc6 {[%emt 0:08:13]} Qxe3+ {[%emt 0:00:21]} 29. Kh1 {[%emt 0:00:43]} Qd3 {[%emt 0:02:11]} 30. Qg2 {[%emt 0:01:22]} Qe3 {[%emt 0:02:05]} 31. Bf3 {[%emt 0:01:46]} g4 {[%emt 0:04:51]} 32. Qxg4 {[%emt 0:02:27]} Qh6 {[%emt 0:00:33]} 33. d5 {[%emt 0:03:55]} Kh7 {[%emt 0:03:23]} 34. d6 {[%emt 0:01:04]} Re6 {[%emt 0:00:59]} 35. Bg5 {[%emt 0:00:11]} Qg7 {[%emt 0:00:25]} 36. Qh4+ {[%emt 0:00:21]} Kg8 {[%emt 0:00:19]} 37. d7 {[%emt 0:01:19]} f6 {[%emt 0:01:40]} 38. Bd5 {[%emt 0:00:28]} Qxd7 {[%emt 0:00:32]} 39. Qe4 {[%emt 0:00:21]} Kg7 {[%emt 0:03:47]} 40. Bxe6 {[%emt 0:00:00]} Qe7 {[%emt 0:00:00]} 41. Bd2 {[%emt 0:04:11]} Re8 {[%emt 0:01:20]} 42. Re1 {[%emt 0:00:38]} Qd6 {[%emt 0:00:48]} 43. Bc3 {[%emt 0:00:24]} Qe7 {[%emt 0:00:26]} 44. Bd5 {[%emt 0:01:34]} Qxe4+ {[%emt 0:00:17]} 45. Rxe4 {[%emt 0:00:33]} Rxe4 {[%emt 0:00:41]} 46. Bxe4 {[%emt 0:00:06]} Kf7 {[%emt 0:00:09]} 47. Bd5+ {[%emt 0:00:10]} Ke7 {[%emt 0:00:12]} 48. Bb4+ {[%emt 0:00:04]} Kd7 {[%emt 0:00:36]} 49. Bf7 {[%emt 0:00:05]} g5 {[%emt 0:00:07]} 50. Kg2 {[%emt 0:00:07]} a5 {[%emt 0:00:25]} 51. Bc3 {[%emt 0:00:05]} Ke7 {[%emt 0:00:15]} 52. Bc4 {[%emt 0:00:05]} f5 {[%emt 0:00:41]} 53. a4 {[%emt 0:00:05]} Kd6 {[%emt 0:00:25]} 54. Bd4 {[%emt 0:00:16]} Kc6 {[%emt 0:00:31]} 55. Bb5+ {[%emt 0:00:07]} Kc7 {[%emt 0:00:24]} 56. Kf3 {[%emt 0:00:07]} Kb7 {[%emt 0:00:22]} 57. Bf6 {[%emt 0:00:07]} g4+ {[%emt 0:01:43]} 58. Kf4 {[%emt 0:00:07]} Kc7 {[%emt 0:00:32]} 59. Be5+ {[%emt 0:00:12]} Kb7 {[%emt 0:00:13]} 60. Kxf5 {[%emt 0:00:10]} Kc8 {[%emt 0:00:43]} 61. Kxg4 {[%emt 0:00:10]} Kd8 {[%emt 0:00:12]} 62. Bd4 {[%emt 0:00:04]} Kc7 {[%emt 0:00:43]} 63. h4 {[%emt 0:00:03]} Kd6 {[%emt 0:01:42]} 64. h5 {[%emt 0:00:09]} Kd5 {[%emt 0:00:17]} 65. Bxb6 {[%emt 0:00:05]} Ke6 {[%emt 0:00:14]} 66. Kg5 {[%emt 0:00:07]} Ke5 {[%emt 0:00:43]} 67. h6 {[%emt 0:00:11]} Ke4 {[%emt 0:00:20]} 68. h7 {[%emt 0:00:07]} Kd5 {[%emt 0:00:41]} 69. h8=Q {[%emt 0:00:06]} Ke4 {[%emt 0:00:05]} 70. Bc6+ {[%emt 0:00:08]} Kd3 {[%emt 0:00:20]} 71. Qd4+ {[%emt 0:00:02]} Kc2 {[%emt 0:00:33]} 72. Be4+ {[%emt 0:00:06]} Kc1 {[%emt 0:00:47]} 73. Qc3+ {[%emt 0:00:08]} Kd1 {[%emt 0:00:03]} 74. Bf3# {[%emt 0:00:06]} 1-0

[Event "EYCC Girls-U12 2019"]
[Site "Bratislava"]
[Date "2019.08.07"]
[Round "6.15"]
[White "Sala, Giulia"]
[Black "Khegai, Darya"]
[Result "1/2-1/2"]
[ECO "B13"]
[WhiteElo "1623"]
[BlackElo "1402"]
[Annotator "NA"]
[PlyCount "104"]
[EventDate "2019.08.02"]
[EventType "swiss"]
[EventCountry "SVK"]
[SourceTitle "playchess.com"]
[Source "ChessBase"]
[SourceQuality "1"]
[TimeControl "40/5400+30:1800+30"]

1. e4 {[%emt 0:00:00]} c6 {[%emt 0:00:44]} 2. d4 {[%emt 0:00:00]} d5 {[%emt 0:00:29]} 3. exd5 {[%emt 0:00:05]} cxd5 {[%emt 0:00:35]} 4. Bd3 {[%emt 0:00:19]} Nc6 {[%emt 0:01:09]} 5. c3 {[%emt 0:00:22]} g6 {[%emt 0:01:44]} 6. Bf4 {[%emt 0:01:15]} Bg7 {[%emt 0:00:21]} 7. Nf3 {[%emt 0:00:48]} Nh6 {[%emt 0:05:04]} 8. O-O {[%emt 0:08:20]} f6 {[%emt 0:02:00]} 9. Re1 {[%emt 0:02:30]} O-O {[%emt 0:00:53]} 10. Nbd2 {[%emt 0:02:53]} Nf7 {[%emt 0:00:34]} 11. Bg3 {[%emt 0:03:10]} e5 {[%emt 0:02:22]} 12. dxe5 {[%emt 0:04:05]} fxe5 {[%emt 0:00:09]} 13. Bb5 {[%emt 0:10:50]} e4 {[%emt 0:07:06]} 14. Bxc6 {[%emt 0:00:35]} exf3 {[%emt 0:01:22]} 15. Ba4 {[%emt 0:01:20]} fxg2 {[%emt 0:05:46]} 16. Nf3 {[%emt 0:03:02]} Bd7 {[%emt 0:17:08]} 17. Kxg2 {[%emt 0:14:05]} Kh8 {[%emt 0:10:17]} 18. Bxd7 {[%emt 0:04:47]} Qxd7 {[%emt 0:00:12]} 19. Ne5 {[%emt 0:02:57]} Nxe5 {[%emt 0:05:44]} 20. Bxe5 {[%emt 0:01:35]} Bxe5 {[%emt 0:00:28]} 21. Rxe5 {[%emt 0:00:10]} Rf5 {[%emt 0:01:03]} 22. Qd4 {[%emt 0:01:08]} Rxe5 {[%emt 0:02:09]} 23. Qxe5+ {[%emt 0:00:11]} Kg8 {[%emt 0:00:05]} 24. Re1 {[%emt 0:02:54]} Qg4+ {[%emt 0:01:23]} 25. Qg3 {[%emt 0:00:46]} Qd7 {[%emt 0:06:25]} 26. Qe3 {[%emt 0:06:21]} Qg4+ {[%emt 0:00:50]} 27. Kh1 {[%emt 0:02:29]} Rf8 {[%emt 0:01:57]} 28. h3 {[%emt 0:04:21]} Qf5 {[%emt 0:05:51]} 29. Kg2 {[%emt 0:03:05]} Rf7 {[%emt 0:07:46]} 30. Qe8+ {[%emt 0:01:08]} Kg7 {[%emt 0:00:54]} 31. Qe5+ {[%emt 0:00:57]} Qxe5 {[%emt 0:00:37]} 32. Rxe5 {[%emt 0:00:07]} Rd7 {[%emt 0:00:02]} 33. Kf3 {[%emt 0:00:43]} Kf6 {[%emt 0:00:27]} 34. Re8 {[%emt 0:02:08]} d4 {[%emt 0:01:01]} 35. cxd4 {[%emt 0:02:34]} Rxd4 {[%emt 0:00:26]} 36. Ke3 {[%emt 0:06:59]} Rh4 {[%emt 0:02:07]} 37. Rf8+ {[%emt 0:02:12]} Ke6 {[%emt 0:01:16]} 38. Rf3 {[%emt 0:01:18]} Ra4 {[%emt 0:02:00]} 39. a3 {[%emt 0:00:44]} Rh4 {[%emt 0:00:32]} 40. Rg3 {[%emt 0:00:00]} Rc4 {[%emt 0:00:00]} 41. Kd3 {[%emt 0:02:28]} Rf4 {[%emt 0:06:30]} 42. Ke3 {[%emt 0:00:59]} Rh4 {[%emt 0:06:14]} 43. Rf3 {[%emt 0:02:25]} b5 {[%emt 0:02:10]} 44. b3 {[%emt 0:01:29]} a5 {[%emt 0:02:35]} 45. Rg3 {[%emt 0:01:30]} a4 {[%emt 0:00:26]} 46. bxa4 {[%emt 0:00:06]} Rxa4 {[%emt 0:00:10]} 47. Kd2 {[%emt 0:00:28]} Rf4 {[%emt 0:00:20]} 48. Ke3 {[%emt 0:02:07]} Rc4 {[%emt 0:01:02]} 49. Kd3 {[%emt 0:00:34]} Rf4 {[%emt 0:01:35]} 50. Ke3 {[%emt 0:00:20]} Kf5 {[%emt 0:04:27]} 51. Ke2 {[%emt 0:01:44]} Ra4 {[%emt 0:03:40]} 52. Rf3+ {[%emt 0:02:06]} Ke6 {[%emt 0:02:39]} 1/2-1/2

[Event "EYCC Girls-U12 2019"]
[Site "Bratislava"]
[Date "2019.08.07"]
[Round "6.16"]
[White "Orian, Noga"]
[Black "Paraschiv, Petronela-Alexandra"]
[Result "1/2-1/2"]
[ECO "A40"]
[WhiteElo "1628"]
[BlackElo "1810"]
[Annotator "NA"]
[PlyCount "62"]
[EventDate "2019.08.02"]
[EventType "swiss"]
[EventCountry "SVK"]
[SourceTitle "playchess.com"]
[Source "ChessBase"]
[SourceQuality "1"]
[TimeControl "40/5400+30:1800+30"]

1. d4 {[%emt 0:00:00]} e6 {[%emt 0:00:00]} 2. Nf3 {[%emt 0:00:00]} Nf6 {[%emt 0:00:00]} 3. Bf4 {[%emt 0:00:00]} b6 {[%emt 0:00:19]} 4. e3 {[%emt 0:00:08]} Bb7 {[%emt 0:00:37]} 5. h3 {[%emt 0:00:21]} Be7 {[%emt 0:00:50]} 6. Bd3 {[%emt 0:00:19]} d6 {[%emt 0:00:58]} 7. O-O {[%emt 0:00:18]} Nbd7 {[%emt 0:00:46]} 8. Nbd2 {[%emt 0:00:50]} O-O {[%emt 0:01:19]} 9. Bh2 {[%emt 0:01:38]} c5 {[%emt 0:01:51]} 10. c3 {[%emt 0:00:44]} h6 {[%emt 0:03:05]} 11. Nc4 {[%emt 0:05:05]} Qc7 {[%emt 0:16:23]} 12. Qe2 {[%emt 0:11:59]} Rfd8 {[%emt 0:01:57]} 13. Rfd1 {[%emt 0:02:31]} Nf8 {[%emt 0:10:25]} 14. Rac1 {[%emt 0:05:19]} Qc6 {[%emt 0:05:45]} 15. dxc5 {[%emt 0:05:06]} Qxc5 {[%emt 0:13:28]} 16. Nd4 a6 {[%emt 0:04:46]} 17. b4 {[%emt 0:08:58]} Qc7 {[%emt 0:01:50]} 18. a4 {[%emt 0:08:22]} e5 {[%emt 0:02:22]} 19. Nf5 {[%emt 0:02:50]} Ng6 {[%emt 0:01:07]} 20. e4 {[%emt 0:09:41]} Ne8 {[%emt 0:01:56]} 21. Qe3 {[%emt 0:03:53]} b5 {[%emt 0:02:30]} 22. axb5 {[%emt 0:04:06]} axb5 {[%emt 0:00:15]} 23. Nb6 {[%emt 0:03:23]} Ra6 {[%emt 0:00:38]} 24. Nd5 {[%emt 0:00:13]} Bxd5 {[%emt 0:00:10]} 25. exd5 {[%emt 0:00:02]} Bg5 {[%emt 0:05:10]} 26. f4 {[%emt 0:00:57]} exf4 {[%emt 0:00:30]} 27. Qf3 {[%emt 0:03:24]} Rb6 {[%emt 0:01:55]} 28. h4 {[%emt 0:00:35]} Nxh4 {[%emt 0:00:48]} 29. Nxh4 {[%emt 0:00:08]} Bxh4 {[%emt 0:00:05]} 30. Bxf4 {[%emt 0:00:10]} Bf6 {[%emt 0:00:39]} 31. Qe4 {[%emt 0:08:09]} Be5 {[%emt 0:08:09]} 1/2-1/2

[Event "EYCC Girls-U12 2019"]
[Site "Bratislava"]
[Date "2019.08.07"]
[Round "6.17"]
[White "Tsirekidze, Barbare"]
[Black "Muradyan, Anahit"]
[Result "1-0"]
[ECO "A56"]
[WhiteElo "1527"]
[BlackElo "1353"]
[Annotator "NA"]
[PlyCount "134"]
[EventDate "2019.08.02"]
[EventType "swiss"]
[EventCountry "SVK"]
[SourceTitle "playchess.com"]
[Source "ChessBase"]
[SourceQuality "1"]
[TimeControl "40/5400+30:1800+30"]

1. d4 {[%emt 0:00:00]} Nf6 {[%emt 0:00:00]} 2. c4 {[%emt 0:00:00]} c5 {[%emt 0:00:00]} 3. Nf3 {[%emt 0:01:16]} cxd4 {[%emt 0:02:14]} 4. Nxd4 {[%emt 0:00:36]} d6 {[%emt 0:01:40]} 5. g3 {[%emt 0:01:01]} e6 {[%emt 0:06:25]} 6. Bg2 {[%emt 0:00:43]} a6 {[%emt 0:03:27]} 7. Nc3 {[%emt 0:04:07]} Qc7 {[%emt 0:02:59]} 8. Qb3 {[%emt 0:27:51]} Be7 {[%emt 0:20:34]} 9. O-O {[%emt 0:03:02]} O-O {[%emt 0:00:49]} 10. Bd2 {[%emt 0:08:35]} Nc6 {[%emt 0:04:22]} 11. Nxc6 {[%emt 0:00:36]} bxc6 {[%emt 0:00:04]} 12. e4 {[%emt 0:01:04]} Rb8 {[%emt 0:01:02]} 13. Qc2 {[%emt 0:00:22]} e5 {[%emt 0:04:18]} 14. Kh1 {[%emt 0:08:06]} Be6 {[%emt 0:06:53]} 15. Na4 {[%emt 0:04:44]} Nd7 {[%emt 0:10:03]} 16. f4 {[%emt 0:14:12]} exf4 {[%emt 0:11:29]} 17. Bxf4 {[%emt 0:03:53]} c5 {[%emt 0:03:28]} 18. Rfe1 {[%emt 0:04:36]} Nb6 {[%emt 0:02:56]} 19. Nxb6 {[%emt 0:00:31]} Qxb6 {[%emt 0:00:13]} 20. Rab1 {[%emt 0:01:26]} Qb4 {[%emt 0:01:59]} 21. b3 {[%emt 0:00:29]} Qb6 {[%emt 0:02:02]} 22. e5 Rfd8 {[%emt 0:05:12]} 23. Rbd1 {[%emt 0:08:31]} dxe5 {[%emt 0:01:23]} 24. Bxe5 {[%emt 0:00:05]} Rxd1 {[%emt 0:00:33]} 25. Rxd1 {[%emt 0:00:29]} Rd8 {[%emt 0:00:39]} 26. h3 {[%emt 0:02:29]} Rxd1+ {[%emt 0:03:01]} 27. Qxd1 {[%emt 0:00:04]} Qd8 {[%emt 0:00:32]} 28. Qxd8+ {[%emt 0:00:21]} Bxd8 {[%emt 0:00:01]} 29. Bd6 {[%emt 0:00:12]} Bb6 {[%emt 0:00:04]} 30. Kg1 {[%emt 0:00:11]} Bf5 {[%emt 0:00:15]} 31. Kf1 {[%emt 0:01:25]} Bb1 {[%emt 0:00:51]} 32. a3 {[%emt 0:00:11]} Ba2 {[%emt 0:00:26]} 33. Bd5 {[%emt 0:02:35]} Bxb3 {[%emt 0:00:25]} 34. Ke2 {[%emt 0:00:19]} Ba4 {[%emt 0:00:31]} 35. Ke3 {[%emt 0:00:42]} Bd7 {[%emt 0:00:13]} 36. h4 {[%emt 0:00:12]} g6 {[%emt 0:01:13]} 37. Ke4 {[%emt 0:01:12]} Kg7 {[%emt 0:00:42]} 38. Bb7 {[%emt 0:00:44]} a5 {[%emt 0:01:20]} 39. Ke5 {[%emt 0:01:33]} Be6 {[%emt 0:00:56]} 40. Bd5 {[%emt 0:00:00]} Bf5 {[%emt 0:00:00]} 41. Bb7 {[%emt 0:07:58]} Be6 {[%emt 0:05:35]} 42. Ba6 {[%emt 0:02:07]} h5 {[%emt 0:01:32]} 43. Bb5 {[%emt 0:00:44]} Bg4 {[%emt 0:02:54]} 44. Bb8 {[%emt 0:05:56]} Bd8 {[%emt 0:03:10]} 45. Kd6 {[%emt 0:02:36]} Bf6 {[%emt 0:01:46]} 46. Kxc5 {[%emt 0:00:51]} Bb2 {[%emt 0:00:06]} 47. a4 {[%emt 0:00:25]} Kf6 {[%emt 0:01:01]} 48. Bc6 {[%emt 0:02:04]} Be6 {[%emt 0:03:03]} 49. Kb5 {[%emt 0:04:58]} Bc3 {[%emt 0:00:46]} 50. c5 {[%emt 0:02:02]} Ke7 {[%emt 0:01:18]} 51. Bc7 {[%emt 0:00:51]} Be1 {[%emt 0:00:22]} 52. Kb6 {[%emt 0:01:14]} f6 {[%emt 0:01:06]} 53. Bd6+ {[%emt 0:00:39]} Kd8 {[%emt 0:00:19]} 54. Bb5 {[%emt 0:02:10]} g5 {[%emt 0:02:41]} 55. hxg5 {[%emt 0:00:13]} fxg5 {[%emt 0:00:05]} 56. Bf1 {[%emt 0:02:05]} h4 {[%emt 0:00:25]} 57. gxh4 {[%emt 0:00:10]} gxh4 {[%emt 0:00:04]} 58. c6 {[%emt 0:01:07]} Bc8 {[%emt 0:01:07]} 59. c7+ {[%emt 0:00:32]} Ke8 {[%emt 0:00:07]} 60. Ka7 {[%emt 0:01:50]} Kf7 {[%emt 0:09:07]} 61. Kb8 {[%emt 0:00:19]} Bd7 {[%emt 0:00:25]} 62. c8=Q {[%emt 0:00:31]} Bxc8 {[%emt 0:00:02]} 63. Kxc8 {[%emt 0:00:04]} Ke6 {[%emt 0:00:05]} 64. Kc7 {[%emt 0:01:04]} Kd5 {[%emt 0:00:30]} 65. Be7 {[%emt 0:00:54]} Kd4 {[%emt 0:00:41]} 66. Kc6 {[%emt 0:00:11]} Kc3 {[%emt 0:00:20]} 67. Kb5 {[%emt 0:00:06]} Kb3 {[%emt 0:00:09]} 1-0

[Event "EYCC Girls-U12 2019"]
[Site "Bratislava"]
[Date "2019.08.07"]
[Round "6.18"]
[White "Chicarosie, Ioana-Bianca"]
[Black "Koniadze, Lizi"]
[Result "1-0"]
[ECO "A46"]
[WhiteElo "1580"]
[BlackElo "1283"]
[Annotator "NA"]
[PlyCount "205"]
[EventDate "2019.08.02"]
[EventType "swiss"]
[EventCountry "SVK"]
[SourceTitle "playchess.com"]
[Source "ChessBase"]
[SourceQuality "1"]
[TimeControl "40/5400+30:1800+30"]

1. d4 {[%emt 0:00:00]} Nf6 {[%emt 0:00:00]} 2. Nf3 {[%emt 0:00:00]} e6 {[%emt 0:00:22]} 3. e3 {[%emt 0:00:48]} b6 {[%emt 0:00:40]} 4. Bd3 {[%emt 0:00:20]} Bb7 {[%emt 0:00:35]} 5. Nbd2 {[%emt 0:02:20]} c5 {[%emt 0:02:27]} 6. c3 {[%emt 0:02:20]} Be7 {[%emt 0:01:33]} 7. O-O {[%emt 0:01:02]} Nc6 {[%emt 0:00:36]} 8. Qe2 {[%emt 0:03:04]} O-O {[%emt 0:02:17]} 9. e4 {[%emt 0:02:15]} cxd4 {[%emt 0:02:23]} 10. cxd4 {[%emt 0:05:33]} Nb4 {[%emt 0:03:06]} 11. a3 {[%emt 0:11:33]} Nxd3 {[%emt 0:00:21]} 12. Qxd3 {[%emt 0:00:32]} Qc8 {[%emt 0:03:34]} 13. b4 {[%emt 0:04:09]} Qc7 {[%emt 0:02:34]} 14. Bb2 {[%emt 0:01:57]} Rac8 {[%emt 0:05:29]} 15. Rac1 {[%emt 0:07:54]} Qb8 {[%emt 0:01:44]} 16. Qe2 {[%emt 0:12:22]} Rc7 {[%emt 0:07:27]} 17. Rxc7 {[%emt 0:06:08]} Qxc7 {[%emt 0:00:23]} 18. Rc1 {[%emt 0:00:46]} Qb8 {[%emt 0:03:49]} 19. Ne5 {[%emt 0:04:59]} d6 {[%emt 0:04:08]} 20. Nd3 {[%emt 0:03:37]} Rc8 {[%emt 0:03:29]} 21. f3 {[%emt 0:03:17]} Ba6 {[%emt 0:02:42]} 22. Qe3 {[%emt 0:02:49]} Rc7 {[%emt 0:04:14]} 23. Rxc7 {[%emt 0:04:56]} Qxc7 {[%emt 0:00:11]} 24. Ne1 {[%emt 0:00:21]} Ne8 {[%emt 0:05:53]} 25. g3 {[%emt 0:06:07]} Qc6 {[%emt 0:02:20]} 26. Qb3 {[%emt 0:01:41]} Bb5 {[%emt 0:03:48]} 27. Nd3 {[%emt 0:02:08]} Nc7 {[%emt 0:04:39]} 28. Nc1 {[%emt 0:02:39]} Bg5 {[%emt 0:01:30]} 29. f4 {[%emt 0:00:49]} Bf6 {[%emt 0:01:05]} 30. Qc3 {[%emt 0:01:08]} Qxc3 {[%emt 0:02:47]} 31. Bxc3 {[%emt 0:00:05]} Bc6 {[%emt 0:03:31]} 32. Bb2 {[%emt 0:01:02]} Nb5 {[%emt 0:02:50]} 33. Ncb3 {[%emt 0:00:19]} d5 {[%emt 0:00:28]} 34. e5 {[%emt 0:01:02]} Be7 {[%emt 0:00:32]} 35. a4 {[%emt 0:01:43]} Nc7 {[%emt 0:00:57]} 36. b5 {[%emt 0:01:09]} Bd7 {[%emt 0:02:03]} 37. Bc3 {[%emt 0:01:41]} Kf8 {[%emt 0:00:24]} 38. Nc1 {[%emt 0:01:17]} a5 {[%emt 0:08:30]} 39. Ndb3 {[%emt 0:01:08]} h5 {[%emt 0:01:45]} 40. Nd3 {[%emt 0:00:00]} Na8 {[%emt 0:00:00]} 41. Ne1 {[%emt 0:01:09]} Bd8 {[%emt 0:01:22]} 42. Nc2 {[%emt 0:00:19]} g6 {[%emt 0:00:22]} 43. Bb2 {[%emt 0:00:24]} Be7 {[%emt 0:01:06]} 44. Ba3 {[%emt 0:00:22]} Bxa3 {[%emt 0:00:06]} 45. Nxa3 {[%emt 0:00:05]} Ke7 {[%emt 0:00:16]} 46. Nd2 {[%emt 0:00:14]} Nc7 {[%emt 0:00:26]} 47. Nf3 {[%emt 0:00:14]} Ne8 {[%emt 0:00:10]} 48. h3 {[%emt 0:00:38]} Ng7 {[%emt 0:01:58]} 49. g4 {[%emt 0:00:40]} hxg4 {[%emt 0:00:04]} 50. hxg4 {[%emt 0:00:05]} Ne8 {[%emt 0:01:50]} 51. Kg2 {[%emt 0:00:40]} Kf8 {[%emt 0:00:42]} 52. Kg3 {[%emt 0:02:50]} Kg7 {[%emt 0:00:13]} 53. Kh4 {[%emt 0:00:51]} Nc7 {[%emt 0:00:10]} 54. Kg5 {[%emt 0:01:03]} Ne8 {[%emt 0:00:54]} 55. Nc2 {[%emt 0:10:47]} f6+ {[%emt 0:02:02]} 56. Kh4 {[%emt 0:05:06]} Bc8 {[%emt 0:01:41]} 57. Na3 {[%emt 0:01:11]} Bd7 {[%emt 0:00:19]} 58. Nb1 {[%emt 0:00:24]} Bc8 {[%emt 0:00:50]} 59. Nc3 {[%emt 0:00:36]} Bd7 {[%emt 0:00:09]} 60. Nd1 {[%emt 0:00:43]} Bc8 {[%emt 0:00:18]} 61. Nb2 {[%emt 0:00:55]} Bd7 {[%emt 0:00:31]} 62. Nd3 {[%emt 0:00:12]} Bc8 {[%emt 0:00:19]} 63. Nde1 {[%emt 0:01:17]} Bd7 {[%emt 0:00:09]} 64. Nd2 {[%emt 0:00:55]} Bc8 {[%emt 0:00:14]} 65. Nef3 {[%emt 0:00:25]} f5 {[%emt 0:00:38]} 66. gxf5 {[%emt 0:00:37]} gxf5 {[%emt 0:00:06]} 67. Kg5 {[%emt 0:00:10]} Bd7 {[%emt 0:00:12]} 68. Nh2 {[%emt 0:00:51]} Bc8 {[%emt 0:00:09]} 69. Nhf1 {[%emt 0:00:10]} Bd7 {[%emt 0:00:26]} 70. Ng3 {[%emt 0:00:06]} Bc8 {[%emt 0:00:25]} 71. Nb3 {[%emt 0:00:33]} Bd7 {[%emt 0:00:14]} 72. Nc1 {[%emt 0:00:07]} Bc8 {[%emt 0:00:07]} 73. Nd3 {[%emt 0:00:20]} Kf7 {[%emt 0:00:33]} 74. Nh5 {[%emt 0:00:38]} Ke7 {[%emt 0:00:21]} 75. Kg6 {[%emt 0:00:44]} Nc7 {[%emt 0:00:10]} 76. Nf6 {[%emt 0:00:46]} Na8 {[%emt 0:00:04]} 77. Kg7 {[%emt 0:00:44]} Nc7 {[%emt 0:00:05]} 78. Nc1 {[%emt 0:00:32]} Na8 {[%emt 0:00:08]} 79. Ne2 {[%emt 0:00:14]} Nc7 {[%emt 0:00:12]} 80. Ng3 {[%emt 0:00:25]} Na8 {[%emt 0:00:12]} 81. Ng8+ {[%emt 0:01:07]} Ke8 {[%emt 0:00:48]} 82. Kf6 {[%emt 0:01:54]} Kf8 {[%emt 0:00:30]} 83. Ne7 {[%emt 0:00:59]} Bd7 {[%emt 0:00:12]} 84. Ng6+ {[%emt 0:00:30]} Ke8 {[%emt 0:00:13]} 85. Nh8 {[%emt 0:01:27]} Kf8 {[%emt 0:00:22]} 86. Nf7 {[%emt 0:01:04]} Nc7 {[%emt 0:00:10]} 87. Nd6 {[%emt 0:01:11]} Na8 {[%emt 0:00:11]} 88. Nf1 {[%emt 0:01:29]} Nc7 {[%emt 0:00:12]} 89. Nd2 {[%emt 0:00:10]} Na8 {[%emt 0:00:14]} 90. Nf3 {[%emt 0:00:14]} Nc7 {[%emt 0:00:29]} 91. Nh4 {[%emt 0:00:13]} Ne8+ {[%emt 0:00:13]} 92. Nxe8 {[%emt 0:01:35]} Kxe8 {[%emt 0:00:10]} 93. Nf3 {[%emt 0:00:17]} Bc8 {[%emt 0:00:15]} 94. Ng5 {[%emt 0:01:01]} Bd7 {[%emt 0:00:16]} 95. Nxe6 {[%emt 0:00:18]} Bxe6 {[%emt 0:00:05]} 96. Kxe6 {[%emt 0:00:06]} Kd8 {[%emt 0:00:06]} 97. Kxd5 {[%emt 0:00:12]} Kd7 {[%emt 0:00:18]} 98. e6+ {[%emt 0:00:10]} Ke7 {[%emt 0:00:13]} 99. Ke5 {[%emt 0:00:06]} Kd8 {[%emt 0:00:10]} 100. d5 {[%emt 0:00:06]} Ke8 {[%emt 0:00:06]} 101. d6 {[%emt 0:00:09]} Kd8 {[%emt 0:00:19]} 102. Kf6 {[%emt 0:00:09]} Ke8 {[%emt 0:00:12]} 103. e7 {[%emt 0:00:22]} 1-0